lending/lending_fUSD_20260101
["ID","MTS","AMOUNT","RATE_DAILY","PERIOD"]
[400287753,1767278461396,500.0,0.0004313,120]
[400287754,1767278467901,500.0,0.0004313,120]
[400287755,1767278468635,500.0,0.0004313,120]
[400287756,1767278469098,500.0,0.0004313,120]
[400287758,1767278479547,500.0,0.0004313,120]
[400287759,1767278479586,151.0,0.0004313,120]
[400287760,1767278480171,151.0,0.0004313,120]
[400287761,1767278480774,151.0,0.0004313,120]
[400287762,1767278481405,151.0,0.0004313,120]
[400287763,1767278482034,151.0,0.0004313,120]
[400287764,1767278482684,151.0,0.0004313,120]
[400287765,1767278483309,151.0,0.0004313,120]
[400287766,1767278483946,151.0,0.0004313,120]
[400287767,1767278484549,151.0,0.0004313,120]
[400287768,1767278485186,151.0,0.0004313,120]
[400287769,1767278485822,151.0,0.0004313,120]
[400287770,1767278524971,200.0,0.0004313,120]
[400287771,1767278530342,200.0,0.0004313,120]
[400287772,1767278532220,200.0,0.0004313,120]
[400287773,1767278533522,500.0,0.0004313,120]
[400287774,1767278545163,785.331357,0.0004313,50]
[400287775,1767278545496,785.331357,0.0004313,50]
[400287776,1767278545782,785.331357,0.0004313,50]
[400287777,1767278546084,785.331357,0.0004313,50]
[400287778,1767278546387,785.331357,0.0004313,50]
[400287779,1767278546680,785.331357,0.0004313,50]
[400287780,1767278547012,785.331357,0.0004313,50]
[400287781,1767278547440,785.331357,0.0004313,50]
[400287782,1767278547744,785.331357,0.0004313,50]
[400287783,1767278548304,785.331357,0.0004313,50]
[400287784,1767278548383,785.331357,0.0004313,50]
[400287785,1767278548701,785.331357,0.0004313,50]
[400287786,1767278549023,785.331357,0.0004313,50]
[400287787,1767278549316,785.331357,0.0004313,50]
[400287788,1767278549647,785.331357,0.0004313,50]
[400287789,1767278549951,785.331357,0.0004313,50]
[400287790,1767278550334,785.331357,0.0004313,50]
[400287791,1767278550733,785.331357,0.0004313,50]
[400287792,1767278551050,785.331357,0.0004313,50]
[400287793,1767278551369,785.331349,0.0004313,50]
[400287796,1767278698071,999.0,0.00013108,3]
[400287798,1767278760645,500.0,0.0004313,120]
[400287799,1767278848796,2011.88,0.0004313,30]
[400287802,1767278955151,-744.96610274,0.00013093,2]
[400287806,1767279031661,-500.0,0.00013159,2]
[400287807,1767279031671,-542.84,0.00013277,2]
[400287808,1767279031682,-198.5612356,0.00013331,2]
[400287809,1767279031692,-200.0,0.00013389,2]
[400287810,1767279031702,-713.2,0.00013699,2]
[400287811,1767279031713,-1200.0,0.0001372,2]
[400287812,1767279031722,-100.84712453,0.0001372,2]
[400287813,1767279031734,-199.15287547,0.0001372,2]
[400287814,1767279031743,-1200.0,0.0001372,2]
[400287815,1767279031753,-300.0,0.0001372,2]
[400287816,1767279031762,-204.56715343,0.00013721,2]
[400287817,1767279031775,-6297.26214657,0.00013721,2]
[400287818,1767279031784,-2500.0,0.00013721,2]
[400287819,1767279031793,-1000.0,0.00013721,2]
[400287820,1767279031803,-151.0,0.00013797,2]
[400287821,1767279031812,-4791.88837488,0.000138,2]
[400287822,1767279031822,-391.33491859,0.00013817,2]
[400287823,1767279031832,-163.64248027,0.00013818,2]
[400287824,1767279031841,-150.0,0.00013819,2]
[400287825,1767279031851,-511.55315408,0.0001382,2]
[400287826,1767279031863,-1034.72684592,0.0001382,2]
[400287827,1767279031872,-146.4023813,0.0001382,2]
[400287828,1767279031883,-291.47,0.0001382,2]
[400287829,1767279031895,-9562.1176187,0.0001382,2]
[400287830,1767279031904,-580.87166997,0.0001382,2]
[400287831,1767279031914,-157.94040256,0.0001382,2]
[400287832,1767279031924,-213.59337561,0.0001382,2]
[400287833,1767279031933,-105844.08619809,0.00013821,2]
[400287834,1767279031946,-8833.49643531,0.00013821,2]
[400287835,1767279031957,-8873.00830267,0.00013821,2]
[400287837,1767279031969,-13050.95452502,0.00013821,2]
[400287841,1767279032142,-424.03221248,0.00013821,2]
[400287842,1767279032270,-655.42232668,0.00013821,2]
[400287843,1767279037718,-278.35226355,0.00013093,2]
[400287844,1767279037734,-466.09183645,0.00013093,2]
[400287845,1767279037745,-862318.99999975,0.00013821,2]
[400287846,1767279037755,-6000.0,0.000139,2]
[400287847,1767279037766,-151.0,0.00013913,2]
[400287848,1767279037776,-151.0,0.00013913,2]
[400287849,1767279037789,-151.0,0.00013913,2]
[400287850,1767279037799,-151.0,0.00013913,2]
[400287851,1767279037809,-151.0,0.00013913,2]
[400287852,1767279037819,-151.0,0.00013913,2]
[400287853,1767279037829,-151.0,0.00013913,2]
[400287854,1767279037839,-151.0,0.00013913,2]
[400287855,1767279037848,-151.0,0.00013913,2]
[400287856,1767279037858,-151.0,0.00013913,2]
[400287857,1767279037873,-151.0,0.00013913,2]
[400287858,1767279037882,-151.0,0.00013913,2]
[400287859,1767279037892,-151.0,0.00013913,2]
[400287860,1767279037903,-151.0,0.00013913,2]
[400287861,1767279037912,-151.0,0.00013913,2]
[400287862,1767279037922,-151.0,0.00013913,2]
[400287863,1767279037932,-151.0,0.00013913,2]
[400287864,1767279037942,-151.0,0.00013913,2]
[400287865,1767279037951,-151.0,0.00013913,2]
[400287866,1767279037961,-151.0,0.00013913,2]
[400287867,1767279037972,-252.71,0.00013913,2]
[400287868,1767279037982,-359.36945915,0.0001392,2]
[400287869,1767279037992,-22335.436277,0.00013941,2]
[400287870,1767279038002,-151.0,0.00013961,2]
[400287871,1767279038012,-151.0,0.00013961,2]
[400287872,1767279038021,-151.0,0.00013961,2]
[400287873,1767279038032,-151.0,0.00013961,2]
[400287875,1767279038041,-151.0,0.00013961,2]
[400287877,1767279038051,-151.0,0.00013961,2]
[400287879,1767279038061,-151.0,0.00013961,2]
[400287882,1767279038071,-151.0,0.00013961,2]
[400287884,1767279038082,-151.0,0.00013961,2]
[400287886,1767279038093,-151.0,0.00013961,2]
[400287888,1767279038102,-151.0,0.00013961,2]
[400287890,1767279038115,-151.0,0.00013961,2]
[400287892,1767279038125,-151.0,0.00013961,2]
[400287894,1767279038134,-151.0,0.00013961,2]
[400287896,1767279038144,-151.0,0.00013961,2]
[400287898,1767279038153,-151.0,0.00013961,2]
[400287900,1767279038163,-151.0,0.00013961,2]
[400287902,1767279038173,-151.0,0.00013961,2]
[400287904,1767279038183,-151.0,0.00013961,2]
[400287906,1767279038192,-1258.0,0.00013961,2]
[400287908,1767279038202,-1258.0,0.00013961,2]
[400287910,1767279038212,-1258.0,0.00013961,2]
[400287912,1767279038221,-1258.0,0.00013961,2]
[400287914,1767279038236,-151.11,0.00013989,2]
[400287916,1767279038245,-501.86313919,0.00014,2]
[400287919,1767279038255,-34985.79775915,0.00014018,2]
[400287921,1767279038265,-55267.4020761,0.00014024,2]
[400287923,1767279038276,-1000.0,0.00014073,2]
[400287925,1767279038286,-4791.88837484,0.00014144,2]
[400287927,1767279038296,-252.71,0.00014187,2]
[400287929,1767279038306,-23329.74,0.00014198,2]
[400287931,1767279038317,-162.03,0.00014258,2]
[400287933,1767279038327,-195.0,0.00014402,2]
[400287935,1767279038337,-252.71,0.00014461,2]
[400287938,1767279038347,-300.0,0.00014475,2]
[400287940,1767279038357,-250.0,0.00014475,2]
[400287942,1767279038367,-600.0,0.00014475,2]
[400287944,1767279038376,-557.63794905,0.00014475,2]
[400287946,1767279038387,-195.0,0.00014475,2]
[400287948,1767279038396,-821.27710643,0.00014475,2]
[400287950,1767279038407,-195.0,0.00014475,2]
[400287952,1767279038416,-4791.88837484,0.00014489,2]
[400287954,1767279038426,-252.71,0.00014735,2]
[400287956,1767279038436,-150.0,0.00014821,2]
[400287958,1767279038446,-4791.88837484,0.00014833,2]
[400287960,1767279038459,-492.634905,0.00014875,2]
[400287962,1767279038470,-2882.0,0.00014881,2]
[400287965,1767279038480,-4395.55,0.00014937,2]
[400287967,1767279038490,-1206.83325859,0.00015,2]
[400287969,1767279038500,-252.75,0.00015008,2]
[400287971,1767279038510,-150.0,0.00015015,2]
[400287973,1767279038519,-420.0,0.00015035,2]
[400287975,1767279038529,-420.0,0.00015035,2]
[400287977,1767279038539,-175.64,0.00015037,2]
[400287979,1767279038553,-151.11,0.00015065,2]
[400287981,1767279038563,-480.0,0.00015092,2]
[400287983,1767279038573,-2205.22,0.0001511,2]
[400287985,1767279038582,-307.62463828,0.00015118,2]
[400287987,1767279038596,-1655.09246101,0.00015122,2]
[400287990,1767279038606,-4791.88837484,0.00015178,2]
[400287992,1767279038616,-354.70505214,0.000152,2]
[400287994,1767279038626,-150.0,0.00015288,2]
[400287996,1767279038637,-150.0,0.00015288,2]
[400287998,1767279038647,-150.0,0.00015288,2]
[400288000,1767279038657,-280.2982122,0.00015288,2]
[400288002,1767279038668,-229.00438454,0.00015288,2]
[400288004,1767279038679,-150.0,0.00015288,2]
[400288006,1767279038690,-1403.0,0.00015361,2]
[400288008,1767279038701,-1328.0,0.00015361,2]
[400288011,1767279038712,-280.426,0.00015361,2]
[400288013,1767279038722,-913.0,0.00015361,2]
[400288015,1767279038733,-1199.0,0.00015361,2]
[400288017,1767279038743,-6690.386,0.00015361,2]
[400288019,1767279038753,-2433.0,0.00015361,2]
[400288021,1767279038763,-712.861,0.00015361,2]
[400288023,1767279038773,-767.33,0.00015377,2]
[400288026,1767279038788,-165.86,0.00015483,2]
[400288028,1767279038799,-4791.88837484,0.00015522,2]
[400288030,1767279038810,-151.0,0.0001556,2]
[400288031,1767279038820,-151.0,0.0001556,2]
[400288032,1767279038830,-4983.7094734,0.00015716,2]
[400288033,1767279038840,-1000.0,0.00015832,2]
[400288034,1767279038852,-4791.88837484,0.00015867,2]
[400288035,1767279038862,-1112.0158929,0.00016112,2]
[400288036,1767279038872,-150.0,0.00016137,2]
[400288037,1767279038883,-4791.88837484,0.00016211,2]
[400288038,1767279038894,-588.42078757,0.00016438,2]
[400288039,1767279038904,-588.42078757,0.00016438,2]
[400288040,1767279038914,-588.42078757,0.00016438,2]
[400288041,1767279038923,-588.42078757,0.00016438,2]
[400288042,1767279038933,-588.42078757,0.00016438,2]
[400288043,1767279038943,-588.42078757,0.00016438,2]
[400288045,1767279038953,-588.42078757,0.00016438,2]
[400288047,1767279038964,-588.42078757,0.00016438,2]
[400288049,1767279038980,-588.42078757,0.00016438,2]
[400288051,1767279038990,-588.42078757,0.00016438,2]
[400288053,1767279039000,-588.42078757,0.00016438,2]
[400288055,1767279039010,-588.42078757,0.00016438,2]
[400288057,1767279039020,-588.42078757,0.00016438,2]
[400288059,1767279039031,-588.42078757,0.00016438,2]
[400288061,1767279039041,-588.42078757,0.00016438,2]
[400288063,1767279039051,-588.42078757,0.00016438,2]
[400288065,1767279039062,-588.42078757,0.00016438,2]
[400288067,1767279039072,-588.42078757,0.00016438,2]
[400288069,1767279039084,-588.42078757,0.00016438,2]
[400288071,1767279039095,-588.42078757,0.00016438,2]
[400288073,1767279039106,-588.42078757,0.00016438,2]
[400288075,1767279039117,-588.42078757,0.00016438,2]
[400288077,1767279039127,-588.42078757,0.00016438,2]
[400288079,1767279039138,-588.42078757,0.00016438,2]
[400288081,1767279039149,-588.42078757,0.00016438,2]
[400288083,1767279039163,-588.42078757,0.00016438,2]
[400288086,1767279039172,-588.42078757,0.00016438,2]
[400288088,1767279039182,-588.42078757,0.00016438,2]
[400288090,1767279039191,-588.42078757,0.00016438,2]
[400288092,1767279039202,-588.42078757,0.00016438,2]
[400288094,1767279039219,-588.42078757,0.00016438,2]
[400288096,1767279039232,-588.42078757,0.00016438,2]
[400288098,1767279039242,-588.42078757,0.00016438,2]
[400288100,1767279039253,-588.42078757,0.00016438,2]
[400288102,1767279039263,-588.42078757,0.00016438,2]
[400288104,1767279039273,-588.42078757,0.00016438,2]
[400288106,1767279039283,-588.42078757,0.00016438,2]
[400288108,1767279039292,-588.42078757,0.00016438,2]
[400288110,1767279039302,-588.42078757,0.00016438,2]
[400288112,1767279039313,-588.42078757,0.00016438,2]
[400288115,1767279039323,-588.42078757,0.00016438,2]
[400288117,1767279039332,-588.42078757,0.00016438,2]
[400288119,1767279039342,-588.42078757,0.00016438,2]
[400288121,1767279039351,-588.42078757,0.00016438,2]
[400288123,1767279039362,-588.42078757,0.00016438,2]
[400288125,1767279039373,-588.42078757,0.00016438,2]
[400288127,1767279039384,-588.42078757,0.00016438,2]
[400288129,1767279039393,-588.42078757,0.00016438,2]
[400288131,1767279039402,-588.42078757,0.00016438,2]
[400288133,1767279039412,-588.42078757,0.00016438,2]
[400288135,1767279039421,-588.42078757,0.00016438,2]
[400288137,1767279039431,-588.42078757,0.00016438,2]
[400288139,1767279039440,-588.42078757,0.00016438,2]
[400288141,1767279039450,-588.42078757,0.00016438,2]
[400288143,1767279039460,-588.42078757,0.00016438,2]
[400288145,1767279039469,-588.42078757,0.00016438,2]
[400288147,1767279039481,-588.42078757,0.00016438,2]
[400288149,1767279039490,-588.42078757,0.00016438,2]
[400288151,1767279039500,-588.42078757,0.00016438,2]
[400288154,1767279039509,-588.42078757,0.00016438,2]
[400288156,1767279039519,-588.42078757,0.00016438,2]
[400288158,1767279039530,-588.42078757,0.00016438,2]
[400288160,1767279039539,-588.42078757,0.00016438,2]
[400288163,1767279039559,-588.42078757,0.00016438,2]
[400288165,1767279039571,-588.42078757,0.00016438,2]
[400288167,1767279039581,-588.42078757,0.00016438,2]
[400288169,1767279039591,-588.42078757,0.00016438,2]
[400288171,1767279039601,-588.42078757,0.00016438,2]
[400288173,1767279039611,-588.42078757,0.00016438,2]
[400288175,1767279039621,-588.42078757,0.00016438,2]
[400288177,1767279039632,-588.42078757,0.00016438,2]
[400288179,1767279039642,-50556.54,0.00016438,10]
[400288182,1767279039652,-6548.66,0.00016438,2]
[400288184,1767279039663,-587.0,0.00016477,2]
[400288186,1767279039674,-587.0,0.00016477,2]
[400288188,1767279039683,-4791.88837484,0.00016556,2]
[400288190,1767279039693,-500.0,0.00016603,2]
[400288192,1767279039703,-162.03,0.00016634,2]
[400288194,1767279039714,-407.35386975,0.0001666,2]
[400288196,1767279039725,-5000.0,0.000167,2]
[400288198,1767279039735,-168.0,0.00016741,2]
[400288200,1767279039746,-5000.0,0.000168,2]
[400288202,1767279039756,-5000.0,0.000169,2]
[400288204,1767279039766,-4791.88837484,0.000169,2]
[400288206,1767279039775,-181.8927018,0.000169,2]
[400288209,1767279039786,-189.09279759,0.000169,2]
[400288211,1767279039796,-151.21225298,0.000169,2]
[400288213,1767279039806,-5800.0,0.00016949,2]
[400288215,1767279039816,-5800.0,0.00016958,2]
[400288217,1767279039826,-5800.0,0.00016966,2]
[400288219,1767279039836,-500.0,0.00016973,2]
[400288221,1767279039846,-500.0,0.00016973,2]
[400288223,1767279039856,-500.0,0.00016973,2]
[400288225,1767279039866,-515.1289242,0.00016973,2]
[400288227,1767279039876,-500.0,0.00016973,2]
[400288229,1767279039885,-5800.0,0.00016975,2]
[400288231,1767279039895,-168.0,0.00016982,2]
[400288233,1767279039905,-5800.0,0.00016983,2]
[400288236,1767279039919,-16286.39,0.00016986,2]
[400288238,1767279039928,-150.0,0.00016986,2]
[400288240,1767279039939,-150.0,0.00016986,2]
[400288242,1767279039949,-150.0,0.00016986,2]
[400288244,1767279039959,-5800.0,0.00016992,2]
[400288246,1767279039969,-5800.0,0.00016992,2]
[400288249,1767279039980,-431.14590338,0.00016999,2]
[400288251,1767279039989,-5800.0,0.00016999,2]
[400288253,1767279039999,-114329.41111757,0.00017,2]
[400288256,1767279040017,-1463.57776,0.00017,2]
[400288259,1767279040043,-301.48277207,0.00017,2]
[400288262,1767279040056,-2737.38540716,0.00017,2]
[400288264,1767279040068,-660.1508,0.00017,2]
[400288266,1767279040082,-16353.39697952,0.00017,2]
[400288269,1767279040096,-1174.51119258,0.00017,2]
[400288271,1767279040108,-7005.37445566,0.00017,2]
[400288273,1767279040119,-2177.62818745,0.00017,2]
[400288276,1767279040133,-2927.07096423,0.00017,2]
[400288278,1767279040145,-39943.37685957,0.00017,2]
[400288280,1767279040158,-1042.63281571,0.00017,2]
[400288289,1767279040230,-151.0,0.000157,2]
[400288291,1767279040241,-151.0,0.000157,2]
[400288293,1767279040251,-364.04260995,0.00017,2]
[400288295,1767279040263,-14718.80407629,0.00017,2]
[400288337,1767279040655,-7839.97251778,0.00017,2]
[400288340,1767279040667,-1557.38467929,0.00017,2]
[400288342,1767279040680,-1056.62060092,0.00017,2]
[400288476,1767279043554,-1182.47375131,0.00017,2]
[400288477,1767279043619,-1352.08676711,0.00017,2]
[400288478,1767279043665,-1585669.39171696,0.00017,2]
[400288479,1767279043677,-419330.61453142,0.00017,2]
[400288488,1767279061892,500.0,0.00043141,120]
[400288493,1767279362976,500.0,0.00043142,120]
[400288495,1767279520728,171.88,7.27e-05,2]
[400288496,1767279520931,171.88,8.724e-05,2]
[400288498,1767279521138,171.88,0.00010178,2]
[400288499,1767279634100,-171.88,0.00011632,2]
[400288501,1767279661505,500.0,0.00043139,120]
[400288504,1767279926710,505.85873594,0.00043139,30]
[400288505,1767279927210,151.0,0.00043139,50]
[400288506,1767279928326,151.0,0.00043139,50]
[400288507,1767279961462,500.0,0.00043139,120]
[400288511,1767280167117,-365.44674139,0.00013057,2]
[400288514,1767280231871,-257.0,0.00013057,2]
[400288515,1767280231883,-1038.49444711,0.00013057,2]
[400288516,1767280231940,-1549.5188115,0.00013057,2]
[400288517,1767280231951,-150.0,0.00013073,2]
[400288518,1767280231963,-171.88,0.00013086,2]
[400288519,1767280231974,-150.0,0.00013321,2]
[400288520,1767280231984,-300.0,0.00013321,2]
[400288521,1767280231995,-300.0,0.00013321,2]
[400288522,1767280232005,-500.0,0.00013322,2]
[400288523,1767280232017,-500.0,0.00013322,2]
[400288524,1767280232026,-500.0,0.00013322,2]
[400288525,1767280232037,-79.55537098,0.00013322,2]
[400288526,1767280232050,-420.44462902,0.00013322,2]
[400288527,1767280232060,-500.0,0.00013322,2]
[400288528,1767280232070,-500.0,0.00013322,2]
[400288529,1767280232080,-500.0,0.00013322,2]
[400288530,1767280232091,-500.0,0.00013322,2]
[400288531,1767280232101,-193.09674913,0.00013322,2]
[400288532,1767280232111,-500.0,0.00013322,2]
[400288534,1767280232121,-500.0,0.00013322,2]
[400288536,1767280232131,-500.0,0.00013322,2]
[400288538,1767280232142,-20000.0,0.00013323,2]
[400288539,1767280232152,-150.0,0.00013359,2]
[400288540,1767280232163,-17713.61,0.00013406,2]
[400288541,1767280232173,-1233.39,0.00013426,2]
[400288543,1767280232183,-1000.0,0.00013599,2]
[400288545,1767280232194,-193.54727578,0.00013599,2]
[400288547,1767280232204,-363.3705521,0.00013599,2]
[400288549,1767280232214,-254.81691997,0.00013599,2]
[400288551,1767280232224,-500.0,0.00013599,2]
[400288583,1767280232586,-514.16096736,0.00013599,2]
[400288586,1767280232607,-7354.56823711,0.000136,2]
[400288588,1767280232623,-14649.32362001,0.000136,2]
[400288650,1767280238010,-195.09263474,0.00012973,2]
[400288651,1767280238020,-8087.81553347,0.000136,2]
[400288652,1767280238066,-1871.18699596,0.000136,2]
[400288653,1767280238182,-1541.69551345,0.000136,2]
[400288654,1767280238193,-8393.1773,0.000136,2]
[400288655,1767280238203,-1221.5581,0.000136,2]
[400288656,1767280238213,-1645.29677757,0.00013621,2]
[400288657,1767280238224,-10463.15897308,0.00013621,2]
[400288658,1767280238234,-573.05100545,0.00013621,2]
[400288660,1767280238244,-151.0,0.00013692,2]
[400288661,1767280238254,-151.0,0.00013692,2]
[400288662,1767280238264,-151.0,0.00013692,2]
[400288663,1767280238274,-151.0,0.00013692,2]
[400288664,1767280238284,-151.0,0.00013692,2]
[400288665,1767280238294,-151.0,0.00013692,2]
[400288667,1767280238303,-151.0,0.00013692,2]
[400288669,1767280238319,-198.33115528,0.00013692,2]
[400288670,1767280238329,-309.44,0.00013697,2]
[400288671,1767280238340,-200.0,0.00013699,2]
[400288672,1767280238351,-500.0,0.00013699,2]
[400288674,1767280238360,-249.49037326,0.00013699,2]
[400288675,1767280238371,-500.0,0.00013699,2]
[400288676,1767280238381,-500.0,0.00013699,2]
[400288677,1767280238391,-500.0,0.00013699,2]
[400288678,1767280238401,-500.0,0.00013699,2]
[400288679,1767280238412,-500.0,0.00013699,2]
[400288680,1767280238422,-500.0,0.00013699,2]
[400288681,1767280238432,-500.0,0.00013699,2]
[400288682,1767280238442,-500.0,0.00013699,2]
[400288683,1767280238451,-532.91738073,0.00013699,2]
[400288684,1767280238461,-1411.2,0.00013699,2]
[400288685,1767280238472,-500.0,0.00013699,2]
[400288686,1767280238482,-528.7999241,0.00013699,2]
[400288687,1767280238492,-278.93,0.00013699,2]
[400288688,1767280238502,-500.0,0.00013699,2]
[400288689,1767280238512,-500.0,0.00013699,2]
[400288690,1767280238522,-500.0,0.00013699,2]
[400288691,1767280238532,-500.0,0.00013699,2]
[400288692,1767280238542,-500.0,0.00013699,2]
[400288693,1767280238552,-500.0,0.00013699,2]
[400288694,1767280238561,-500.0,0.00013699,2]
[400288695,1767280238571,-500.0,0.00013699,2]
[400288696,1767280238581,-500.0,0.00013699,2]
[400288697,1767280238591,-574.38725368,0.00013699,2]
[400288698,1767280238601,-1000.0,0.00013721,2]
[400288699,1767280238611,-500.0,0.0001382,2]
[400288700,1767280238624,-500.0,0.0001382,2]
[400288701,1767280238634,-500.0,0.0001382,2]
[400288702,1767280238644,-500.0,0.0001382,2]
[400288703,1767280238654,-500.0,0.0001382,2]
[400288704,1767280238663,-500.0,0.0001382,2]
[400288705,1767280238673,-500.0,0.0001382,2]
[400288706,1767280238683,-500.0,0.0001382,2]
[400288707,1767280238698,-500.0,0.0001382,2]
[400288708,1767280238709,-500.0,0.0001382,2]
[400288709,1767280238719,-500.0,0.0001382,2]
[400288710,1767280238729,-566.1634508,0.0001382,2]
[400288711,1767280238739,-500.0,0.0001392,2]
[400288712,1767280238749,-500.0,0.0001392,2]
[400288713,1767280238760,-500.0,0.0001392,2]
[400288714,1767280238770,-500.0,0.0001392,2]
[400288715,1767280238780,-500.0,0.0001392,2]
[400288716,1767280238790,-503.43874736,0.0001392,2]
[400288717,1767280238801,-278.93,0.00013973,2]
[400288718,1767280238811,-1645.29677749,0.00013985,2]
[400288719,1767280238820,-10463.15897303,0.00013985,2]
[400288720,1767280238830,-166.66,0.00014023,2]
[400288721,1767280238839,-573.05100542,0.00014089,2]
[400288722,1767280238850,-278.95,0.00014247,2]
[400288723,1767280238860,-500.0,0.00014276,2]
[400288724,1767280238870,-500.0,0.00014276,2]
[400288725,1767280238880,-293.04364242,0.00014276,2]
[400288726,1767280238890,-500.0,0.00014276,2]
[400288727,1767280238900,-4921.40064104,0.00014277,2]
[400288728,1767280238911,-166.66,0.00014318,2]
[400288729,1767280238920,-2307.0,0.00014349,2]
[400288730,1767280238931,-1645.29677749,0.0001435,2]
[400288731,1767280238941,-10463.15897303,0.0001435,2]
[400288732,1767280238952,-300.0,0.00014363,2]
[400288733,1767280238962,-600.0,0.00014363,2]
[400288734,1767280238973,-210.86038758,0.00014363,2]
[400288735,1767280238984,-195.0,0.00014363,2]
[400288736,1767280238994,-500.0,0.00014373,2]
[400288737,1767280239005,-500.0,0.00014373,2]
[400288738,1767280239015,-500.0,0.00014373,2]
[400288739,1767280239025,-500.5693231,0.00014373,2]
[400288740,1767280239040,-500.0,0.00014373,2]
[400288741,1767280239050,-500.0,0.00014373,2]
[400288742,1767280239060,-500.0,0.00014373,2]
[400288743,1767280239071,-500.0,0.00014373,2]
[400288744,1767280239081,-500.0,0.00014373,2]
[400288745,1767280239091,-500.0,0.00014373,2]
[400288746,1767280239102,-500.92456422,0.00014373,2]
[400288747,1767280239113,-500.0,0.00014373,2]
[400288748,1767280239123,-500.0,0.00014373,2]
[400288749,1767280239134,-500.0,0.00014373,2]
[400288750,1767280239144,-500.82283012,0.00014373,2]
[400288751,1767280239153,-500.0,0.00014373,2]
[400288752,1767280239164,-224.28477642,0.00014373,2]
[400288753,1767280239173,-500.0,0.00014373,2]
[400288754,1767280239184,-1194.61011857,0.00014394,2]
[400288755,1767280239194,-195.0,0.00014394,2]
[400288756,1767280239204,-2500.0,0.00014394,2]
[400288757,1767280239214,-273.88475592,0.00014394,2]
[400288758,1767280239228,-233.0,0.00014426,2]
[400288759,1767280239238,-171.88,0.0001454,2]
[400288760,1767280239248,-573.05100542,0.00014558,2]
[400288761,1767280239258,-420.0,0.00014604,2]
[400288762,1767280239269,-161.0,0.00014604,2]
[400288763,1767280239279,-166.66,0.00014613,2]
[400288764,1767280239288,-500.0,0.0001463,2]
[400288765,1767280239299,-1645.29677749,0.00014714,2]
[400288766,1767280239309,-10463.15897303,0.00014714,2]
[400288767,1767280239319,-1207.81,0.00014878,2]
[400288768,1767280239329,-166.66,0.00014909,2]
[400288769,1767280239339,-151.0,0.00014918,2]
[400288770,1767280239350,-801.26555498,0.00014921,2]
[400288771,1767280239360,-614.62300004,0.00014999,2]
[400288772,1767280239370,-500.0,0.00014999,2]
[400288773,1767280239380,-573.05100542,0.00015026,2]
[400288774,1767280239389,-1645.29677749,0.00015078,2]
[400288775,1767280239399,-10463.15897303,0.00015078,2]
[400288776,1767280239409,-870.67,0.00015099,2]
[400288777,1767280239420,-166.66,0.00015204,2]
[400288778,1767280239430,-1265.0,0.00015279,2]
[400288779,1767280239439,-150.0,0.00015288,2]
[400288780,1767280239449,-150.0,0.00015288,2]
[400288781,1767280239459,-150.0,0.00015288,2]
[400288782,1767280239469,-150.0,0.00015288,2]
[400288783,1767280239479,-150.0,0.00015288,2]
[400288784,1767280239488,-150.00000001,0.00015288,2]
[400288785,1767280239498,-150.0,0.00015288,2]
[400288786,1767280239508,-154.0769181,0.00015288,2]
[400288787,1767280239519,-150.0,0.00015288,2]
[400288788,1767280239528,-151.0,0.00015313,2]
[400288789,1767280239538,-151.0,0.00015313,2]